fUSD/lending_fUSD_20250812
["ID","MTS","AMOUNT","RATE_DAILY","PERIOD"]
[378766162,1755010243820,-1465.79988296,0.00040975,13]
[378766163,1755010243830,-164.71918509,0.00040975,15]
[378766164,1755010243839,-500.0,0.00040975,2]
[378766165,1755010243848,-500.0,0.00040975,2]
[378766166,1755010243858,-150.0,0.00040975,2]
[378766167,1755010243867,-152.7185346,0.00040975,2]
[378766168,1755010243876,-500.0,0.00040975,2]
[378766169,1755010243885,-150.82724057,0.00040975,2]
[378766170,1755010243895,-150.0,0.00040975,2]
[378766171,1755010243905,-1600.44773565,0.00040975,15]
[378766172,1755010243915,-1000.0,0.00040975,2]
[378766173,1755010243924,-5000.0,0.00040985,2]
[378766174,1755010243934,-189.33032736,0.00040985,2]
[378766175,1755010243944,-48638.4098,0.00040985,2]
[378766176,1755010243953,-500.0,0.00040994,120]
[378766177,1755010243962,-157.9086696,0.00040995,15]
[378766178,1755010243971,-596.38405136,0.00040995,2]
[378766179,1755010243981,-9874.3758,0.00040995,60]
[378766180,1755010243992,-593.03,0.00040995,30]
[378766181,1755010244006,-605.6,0.00040995,30]
[378766182,1755010244021,-3224.85,0.00041,30]
[378766183,1755010244032,-214512.5884237,0.00041,120]
[378766184,1755010244047,-19420.8055129,0.00041065,3]
[378766185,1755010244062,-203.15685045,0.00041065,120]
[378766186,1755010244076,-154.90937,0.00041065,7]
[378766187,1755010244089,-116524.833077,0.00041065,3]
[378766188,1755010244103,-500.0,0.00041065,3]
[378766189,1755010244114,-606.4,0.00041065,30]
[378766190,1755010244128,-604.1,0.00041071,30]
[378766191,1755010244142,-611.46,0.00041073,30]
[378766192,1755010244156,-500.0,0.00041073,5]
[378766193,1755010244170,-500.0,0.00041073,5]
[378766194,1755010244184,-500.0,0.00041073,5]
[378766195,1755010244198,-500.0,0.00041073,5]
[378766196,1755010244212,-159.54040841,0.00041074,7]
[378766197,1755010244226,-151.0,0.00041075,30]
[378766198,1755010244238,-203.487403,0.00041075,30]
[378766199,1755010244253,-153.223414,0.00041075,30]
[378766200,1755010244266,-151.0,0.00041075,30]
[378766201,1755010244279,-150.0,0.00041084,2]
[378766202,1755010244290,-999.0,0.00041084,120]
[378766203,1755010244302,-335154.64061155,0.00041084,31]
[378766204,1755010244744,-888.0,0.00039407,3]
[378766205,1755010244756,-16973.51759744,0.00041084,31]
[378766206,1755010244771,-900.72732393,0.00041084,31]
[378766217,1755010246307,-294802.43273807,0.00041084,31]
[378766218,1755010246372,-2150.50037565,0.00041084,31]
[378766219,1755010246419,-609.94999977,0.00041084,31]
[378767236,1755010588515,273.41,0.00013699,2]
[378768457,1755010775315,1599.99,0.00037207,30]
[378768466,1755011103114,1259.63,0.00018745,2]
[378768467,1755011193352,-173.33823948,0.0002739,3]
[378768468,1755011265464,184.13605265,0.00037235,120]
[378768469,1755011281962,2500.0,0.0002739,120]
[378768478,1755011432501,-204.30632455,0.000249,2]
[378768479,1755011432511,-1000.0,0.00026145,3]
[378768480,1755011432521,-385.89177422,0.0002729,2]
[378768481,1755011432530,-1000.0,0.0002739,3]
[378768482,1755011432540,-1000.0,0.0002739,3]
[378768483,1755011432550,-1000.0,0.0002739,3]
[378768484,1755011432559,-302.0,0.00030733,2]
[378768485,1755011432570,-6920.44846103,0.00032207,5]
[378768486,1755011432579,-535.0,0.00032241,2]
[378768487,1755011432590,-205.0,0.00036,5]
[378768488,1755011432599,-535.0,0.00036206,10]
[378768489,1755011432610,-326.76896546,0.00037241,16]
[378768490,1755011432619,-275.44,0.0003785,60]
[378768491,1755011432628,-2735.72346223,0.00038,2]
[378768492,1755011432638,-893.0,0.00038161,2]
[378768493,1755011432649,-158.29,0.00038802,120]
[378768494,1755011432660,-394.65,0.00038821,2]
[378768495,1755011432669,-191.64,0.00038821,2]
[378768496,1755011432679,-191.7,0.00038832,2]
[378768497,1755011432689,-500.0,0.00038843,2]
[378768498,1755011432698,-500.0,0.00038843,2]
[378768499,1755011432709,-500.0,0.00038843,2]
[378768500,1755011432718,-295.31477857,0.00038843,2]
[378768501,1755011432981,-500.0,0.00027389,2]
[378768503,1755011432991,-441.5888158,0.00027389,2]
[378768505,1755011433001,-204.68522143,0.00038843,2]
[378768507,1755011433012,-5149.09,0.00038866,2]
[378768509,1755011433021,-1000.0,0.00038897,2]
[378768511,1755011433031,-250.0,0.00038921,2]
[378768513,1755011433040,-166.43,0.00039027,2]
[378768515,1755011433050,-666.0,0.00039045,3]
[378768517,1755011433060,-168.0,0.00039468,2]
[378768519,1755011433070,-152.37,0.00039575,2]
[378768521,1755011433080,-152.37,0.00039619,2]
[378768523,1755011433091,-152.37,0.00039663,2]
[378768524,1755011433101,-797.59,0.00039699,2]
[378768525,1755011433110,-797.59,0.00039699,2]
[378768526,1755011433120,-152.37,0.00039707,2]
[378768527,1755011433130,-1094.83,0.00039707,55]
[378768528,1755011433140,-150.0,0.00039748,2]
[378768529,1755011433149,-152.37,0.00039751,2]
[378768530,1755011433159,-152.37,0.00039795,2]
[378768531,1755011433168,-275.44,0.00039815,60]
[378768532,1755011433178,-152.37,0.00039839,2]
[378768533,1755011433187,-152.37,0.00039883,2]
[378768534,1755011433196,-152.37,0.00039927,2]
[378768535,1755011433205,-152.37,0.0003997,2]
[378768536,1755011433215,-2539.69643611,0.0004,30]
[378768537,1755011433225,-150.0,0.0004,2]
[378768538,1755011433235,-317.76,0.0004,30]
[378768539,1755011433245,-2000.0,0.0004,120]
[378768540,1755011433254,-22172.97,0.00040017,2]
[378768541,1755011433264,-535.0,0.00040172,18]
[378768542,1755011433274,-166.98,0.00040215,2]
[378768543,1755011433283,-191.64,0.00040277,2]
[378768544,1755011433293,-420.39902,0.0004067,5]
[378768545,1755011433302,-300.0,0.000407,14]
[378768546,1755011433311,-700.0,0.000408,14]
[378768547,1755011433321,-1000.0,0.00040821,120]
[378768548,1755011433330,-1000.0,0.00040821,120]
[378768549,1755011433341,-911.7,0.00040821,120]
[378768550,1755011433350,-237.0395222,0.0004086,2]
[378768551,1755011433360,-2079.94426044,0.00040884,15]
[378768552,1755011433370,-758.3,0.00040885,2]
[378768553,1755011433380,-1100.0,0.000409,14]
[378768554,1755011433389,-164.71918509,0.00040964,15]
[378768555,1755011433399,-468.78469279,0.00040964,31]
[378768556,1755011433408,-214.46456669,0.00040964,31]
[378768557,1755011433418,-249.43181188,0.00040964,31]
[378768558,1755011433427,-78865.542,0.00040965,2]
[378768559,1755011433436,-167.4907068,0.00040973,28]
[378768560,1755011433445,-1368.07989066,0.00040973,13]
[378768561,1755011433455,-150.0,0.00040975,2]
[378768562,1755011433464,-2481.79649685,0.00040975,15]
[378768563,1755011433474,-154.49464868,0.00040975,2]
[378768564,1755011433483,-500.0,0.00040975,2]
[378768565,1755011433493,-500.0,0.00040975,2]
[378768566,1755011433503,-500.0,0.00040975,2]
[378768567,1755011433513,-150.0,0.00040975,2]
[378768568,1755011433523,-210.51509432,0.00040975,2]
[378768569,1755011433532,-150.0,0.00040975,2]
[378768570,1755011433542,-150.0,0.00040975,2]
[378768571,1755011433552,-5000.0,0.00040984,2]
[378768572,1755011433562,-66644.91506529,0.00040984,60]
[378768573,1755011433596,-447.48229516,0.00027389,2]
[378768574,1755011433606,-143.99025527,0.00040984,60]
[378768575,1755011433617,-1170.99656589,0.00040984,60]
[378768576,1755011433628,-807.913,0.00040984,60]
[378768577,1755011433648,-9685.78535524,0.00040984,60]
[378768578,1755011433659,-1888.0,0.00040984,60]
[378768579,1755011433671,-8546.39975831,0.00040984,60]
[378768580,1755011433680,-500.0,0.00040984,120]
[378768581,1755011433690,-302.8506774,0.00040984,16]
[378768582,1755011433699,-186.65832264,0.00040985,2]
[378768583,1755011433709,-268.8211505,0.00040994,36]
[378768584,1755011433718,-20000.0,0.00041,120]
[378768585,1755011433727,-143008.392,0.00041,120]
[378768586,1755011433737,-11802.05707843,0.00041057,2]
[378768587,1755011433773,-8443.54158137,0.00041057,2]
[378768588,1755011433783,-77516.46305115,0.00041063,3]
[378768589,1755011433807,-449.5191462,0.00041063,3]
[378768600,1755011438450,-888.0,0.00039321,3]
[378768601,1755011438460,-1116.01706776,0.00041063,3]
[378768602,1755011438660,-1452.7337415,0.00041063,3]
[378768603,1755011438671,-1315.0540282,0.00041063,3]
[378768604,1755011438682,-649.44398308,0.00041063,3]
[378768605,1755011438729,-517.34603854,0.00039821,3]
[378768611,1755011440524,-370.65396146,0.00039821,3]
[378768612,1755011440534,-5058.50247222,0.00041063,3]
[378768613,1755011440545,-635.60054998,0.00041063,3]
[378768614,1755011440558,-270.69701805,0.00041063,3]
[378768615,1755011440569,-12001.80568643,0.00041063,3]
[378768616,1755011440580,-949.88788151,0.00041063,3]
[378768617,1755011440673,-2019.14772193,0.00041063,3]
[378768618,1755011440692,-428.25505818,0.00041063,3]
[378768619,1755011440704,-24202.44410121,0.00041063,3]
[378768620,1755011440715,-31044.99539999,0.00041063,3]
[378768621,1755011440843,-888.0,0.00040321,3]
[378768622,1755011440857,-3552.12537361,0.00041063,3]
[378768623,1755011440869,-2247.18687976,0.00041063,3]
[378768624,1755011440881,-566.24559385,0.00041063,3]
[378768625,1755011440894,-269.51969999,0.00041063,3]
[378768628,1755011443509,-4296.0836924,0.00041063,3]
[378768629,1755011443519,-41122.1817722,0.00041063,3]
[378768630,1755011443528,-173.336,0.00041065,3]
[378768631,1755011443538,-500.0,0.00041073,5]
[378768632,1755011443547,-500.0,0.00041073,5]
[378768633,1755011443557,-500.0,0.00041073,5]
[378768634,1755011443566,-500.0,0.00041073,5]
[378768635,1755011443575,-151.0,0.00041073,30]
[378768636,1755011443584,-151.352061,0.00041073,30]
[378768637,1755011443594,-151.0,0.00041073,30]
[378768638,1755011443603,-18893.5253497,0.00041073,3]
[378768639,1755011443613,-18893.5253497,0.00041074,3]
[378768640,1755011443623,-7280.92428196,0.00041074,3]
[378768641,1755011443642,-10313.44768279,0.00041074,3]
[378768642,1755011443653,-369.04840763,0.00041074,3]
[378768643,1755011443664,-1420.22869525,0.00041074,3]
[378768644,1755011443676,-1140.56237691,0.00041074,3]
[378768645,1755011443857,-36.87944156,0.00041074,3]
[378768647,1755011443867,-279.07349367,0.00041074,7]
[378768648,1755011443878,-153.0,0.00041075,14]
[378768649,1755011443887,-300.0,0.00041083,10]
[378768650,1755011443898,-300.0,0.00041083,10]
[378768651,1755011443908,-150.0,0.00041083,2]
[378768652,1755011443918,-160.0,0.00041083,120]
[378768653,1755011443928,-1000.0,0.00041083,120]
[378768654,1755011443937,-160.0,0.00041083,120]
[378768655,1755011443947,-160.0,0.00041083,120]
[378768656,1755011443956,-1000.0,0.00041083,120]
[378768657,1755011443967,-160.0,0.00041083,120]
[378768658,1755011443977,-1888.0,0.00041083,120]
[378768659,1755011443986,-540.0,0.00041083,120]
[378768660,1755011443995,-1957.856,0.00041083,120]
[378768661,1755011444003,-250.0,0.00041083,120]
[378768662,1755011444013,-1756.16022758,0.00041083,120]
[378768663,1755011444021,-250.0,0.00041083,120]
[378768664,1755011444030,-500.0,0.00041083,120]
[378768665,1755011444039,-500.0,0.00041083,120]
[378768666,1755011444048,-250.0,0.00041083,120]
[378768667,1755011444057,-500.0,0.00041083,120]
[378768668,1755011444066,-250.0,0.00041083,120]
[378768669,1755011444076,-250.0,0.00041083,120]
[378768670,1755011444086,-200.0,0.00041083,120]
[378768671,1755011444096,-207.4,0.00041083,120]
[378768672,1755011444244,-215.0738,0.00041083,120]
[378768673,1755011444253,-336.89097612,0.00041083,120]
[378768674,1755011444263,-999.0,0.00041083,120]
[378768675,1755011444272,-300.0,0.00041084,10]
[378768676,1755011444282,-151.0,0.00041084,30]
[378768677,1755011444291,-1000.0,0.00041084,30]
[378768678,1755011444301,-151.0,0.00041084,30]
[378768679,1755011444310,-151.0,0.00041084,30]
[378768680,1755011444319,-308.713101,0.00041084,30]
[378768681,1755011444328,-308.713101,0.00041084,30]
[378768682,1755011444338,-308.713101,0.00041084,30]
[378768683,1755011444347,-308.713101,0.00041084,30]
[378768684,1755011444356,-308.713101,0.00041084,30]
[378768685,1755011444365,-308.713101,0.00041084,30]
[378768686,1755011444374,-307.445499,0.00041084,30]
[378768687,1755011444383,-307.445499,0.00041084,30]
[378768688,1755011444393,-953997.96978888,0.00041084,31]
[378768689,1755011444402,-6456.47438239,0.00041084,61]
[378768690,1755011444412,-207828.778846,0.00041085,3]
[378768691,1755011444422,-493466.181266,0.00041085,3]
[378768692,1755011444431,-151.0,0.00041085,30]
[378768693,1755011444441,-152.069495,0.00041085,30]
[378768694,1755011444450,-151.628463,0.00041085,30]
[378768695,1755011444460,-308.713101,0.00041085,30]
[378768696,1755011444469,-308.713101,0.00041085,30]
[378768697,1755011444479,-307.445499,0.00041085,30]
[378768698,1755011444488,-307.445499,0.00041085,30]
[378768699,1755011444497,-307.445499,0.00041085,30]
[378768700,1755011444506,-307.445499,0.00041085,30]
[378768701,1755011444516,-61683.2726583,0.00041085,3]
[378768702,1755011444525,-2032.2131605,0.00041093,2]
[378768703,1755011444535,-169.56356451,0.00041094,30]
[378768704,1755011444544,-300.0,0.00041094,10]
[378768705,1755011444553,-1107.96082143,0.00041094,30]
[378768706,1755011444562,-500.0,0.00041094,120]
[378768707,1755011444572,-500.0,0.00041094,120]
[378768708,1755011444582,-289.88,0.00041094,120]
[378768709,1755011444592,-1000.0,0.00041094,30]
[378768710,1755011444602,-1000.0,0.00041094,30]
[378768711,1755011444611,-1006.1619,0.00041094,2]
[378768712,1755011444620,-151.0,0.00041094,30]
[378768713,1755011444629,-400.0,0.00041095,30]
[378768714,1755011444639,-199.590995,0.00041095,30]
[378768715,1755011444648,-400.0,0.00041095,30]
[378768716,1755011444657,-408.70341298,0.00041095,30]
[378768717,1755011444667,-400.0,0.00041095,30]
[378768718,1755011444677,-400.0,0.00041095,30]
[378768719,1755011444687,-400.0,0.00041095,30]
[378768720,1755011444696,-400.0,0.00041095,2]
[378768721,1755011444706,-404.91146752,0.00041095,30]
[378768722,1755011444716,-400.0,0.00041095,30]
[378768723,1755011444726,-272.36031892,0.00041095,30]
[378768724,1755011444735,-400.0,0.00041095,2]
[378768725,1755011444745,-400.0,0.00041095,30]
[378768726,1755011444754,-400.0,0.00041095,30]
[378768727,1755011444763,-400.0,0.00041095,30]
[378768728,1755011444773,-400.0,0.00041095,30]
[378768729,1755011444783,-542.43581139,0.00041095,30]
[378768730,1755011444793,-400.0,0.00041095,30]
[378768731,1755011444802,-400.0,0.00041095,30]
[378768732,1755011444811,-400.0,0.00041095,30]
[378768733,1755011444821,-400.0,0.00041095,30]
[378768734,1755011444830,-403.12759948,0.00041095,30]
[378768735,1755011444841,-400.0,0.00041095,30]
[378768736,1755011444854,-400.0,0.00041095,30]
[378768737,1755011444863,-400.0,0.00041095,30]
[378768738,1755011444873,-400.0,0.00041095,30]
[378768739,1755011444883,-400.0,0.00041095,30]
[378768740,1755011444894,-400.0,0.00041095,30]
[378768741,1755011444903,-400.0,0.00041095,30]
[378768742,1755011444912,-400.0,0.00041095,30]
[378768743,1755011444921,-400.0,0.00041095,30]
[378768744,1755011444931,-400.0,0.00041095,30]
[378768745,1755011444941,-400.0,0.00041095,7]
[378768746,1755011444951,-400.0,0.00041095,30]
[378768747,1755011444960,-400.0,0.00041095,30]
[378768748,1755011444969,-500.0,0.00041095,30]
[378768749,1755011444978,-500.0,0.00041095,30]
[378768750,1755011444988,-400.0,0.00041095,30]
[378768751,1755011444997,-500.0,0.00041095,30]
[378768752,1755011445007,-500.0,0.00041095,30]
[378768753,1755011445017,-515.71291258,0.00041095,30]
[378768754,1755011445027,-500.0,0.00041095,30]
[378768755,1755011445037,-500.0,0.00041095,30]
[378768756,1755011445051,-500.0,0.00041095,30]
[378768757,1755011445061,-500.0,0.00041095,30]
[378768758,1755011445071,-500.0,0.00041095,30]
[378768759,1755011445080,-400.0,0.00041095,30]
[378768760,1755011445091,-400.0,0.00041095,2]
[378768761,1755011445101,-400.0,0.00041095,30]
[378768762,1755011445110,-400.0,0.00041095,30]
[378768763,1755011445120,-400.0,0.00041095,30]
[378768764,1755011445129,-400.0,0.00041095,30]
[378768765,1755011445139,-400.0,0.00041095,30]
[378768766,1755011445148,-400.0,0.00041095,30]
[378768767,1755011445158,-400.0,0.00041095,30]
[378768768,1755011445168,-400.0,0.00041095,30]
[378768769,1755011445177,-400.0,0.00041095,30]
[378768770,1755011445186,-210.29139458,0.00041095,30]
[378768773,1755011446370,-189.70860542,0.00041095,30]
[378768774,1755011446380,-400.0,0.00041095,30]
[378768775,1755011446390,-101.995439,0.00041095,30]
[378768776,1755011446417,-298.004561,0.00041095,30]
[378768777,1755011446427,-400.0,0.00041095,30]
[378768778,1755011446437,-400.0,0.00041095,30]
[378768779,1755011446447,-400.0,0.00041095,30]
[378768780,1755011446458,-400.0,0.00041095,30]
[378768781,1755011446468,-400.0,0.00041095,30]
[378768782,1755011446478,-400.0,0.00041095,30]
[378768783,1755011446488,-400.0,0.00041095,30]
[378768784,1755011446498,-400.0,0.00041095,30]
[378768785,1755011446508,-400.0,0.00041095,30]
[378768786,1755011446518,-400.0,0.00041095,30]
[378768787,1755011446527,-400.0,0.00041095,30]
[378768788,1755011446538,-400.0,0.00041095,30]
[378768789,1755011446547,-400.0,0.00041095,30]
[378768790,1755011446557,-312.33569504,0.00041095,30]
[378768791,1755011446571,-87.66430496,0.00041095,30]
[378768792,1755011446581,-400.0,0.00041095,30]
[378768793,1755011446591,-400.0,0.00041095,30]
[378768794,1755011446600,-400.0,0.00041095,30]
[378768795,1755011446610,-400.0,0.00041095,30]
[378768796,1755011446620,-401.29600392,0.00041095,30]
[378768797,1755011446629,-400.0,0.00041095,30]
[378768798,1755011446639,-400.0,0.00041095,30]
[378768799,1755011446648,-400.0,0.00041095,30]
[378768800,1755011446657,-400.0,0.00041095,30]
[378768801,1755011446666,-400.0,0.00041095,30]
[378768802,1755011446675,-347.79560847,0.00041095,30]
[378768803,1755011446688,-120.88052985,0.00041095,30]
[378768804,1755011446698,-400.0,0.00041095,30]
[378768805,1755011446707,-345.12976154,0.00041095,30]
[378768806,1755011446719,-54.87023846,0.00041095,30]
[378768807,1755011446728,-400.0,0.00041095,30]
[378768808,1755011446739,-400.0,0.00041095,30]
[378768809,1755011446749,-400.0,0.00041095,30]
[378768810,1755011446760,-400.0,0.00041095,30]
[378768811,1755011446770,-400.0,0.00041095,30]
[378768812,1755011446781,-400.0,0.00041095,30]
[378768813,1755011446791,-400.0,0.00041095,30]
[378768814,1755011446801,-406.01421476,0.00041095,30]
[378768815,1755011446811,-400.0,0.00041095,30]
[378768816,1755011446820,-400.0,0.00041095,30]
[378768817,1755011446830,-127.75104467,0.00041095,30]
[378768818,1755011446849,-272.24895533,0.00041095,30]
[378768819,1755011446862,-400.0,0.00041095,30]
[378768820,1755011446872,-400.0,0.00041095,30]
[378768821,1755011446882,-400.0,0.00041095,30]
[378768822,1755011446891,-401.366405,0.00041095,30]
[378768823,1755011446902,-400.0,0.00041095,30]
[378768824,1755011446913,-400.0,0.00041095,30]
[378768825,1755011446923,-400.0,0.00041095,30]
[378768826,1755011446933,-400.0,0.00041095,30]
[378768827,1755011446943,-400.0,0.00041095,30]
[378768828,1755011446953,-382.74487404,0.00041095,30]
[378768829,1755011446962,-400.0,0.00041095,30]
[378768830,1755011446972,-400.0,0.00041095,30]
[378768831,1755011446982,-400.0,0.00041095,30]
[378768832,1755011446992,-400.0,0.00041095,30]
[378768845,1755011447132,-400.0,0.00041095,30]
[378768846,1755011447143,-400.0,0.00041095,30]
[378768847,1755011447152,-400.0,0.00041095,30]
[378768848,1755011447163,-400.0,0.00041095,30]
[378768849,1755011447173,-400.0,0.00041095,30]
[378768850,1755011447182,-400.0,0.00041095,30]
[378768851,1755011447192,-400.0,0.00041095,30]
[378768852,1755011447201,-400.0,0.00041095,30]
[378768853,1755011447210,-400.0,0.00041095,30]
[378768854,1755011447220,-400.0,0.00041095,30]
[378768855,1755011447229,-400.0,0.00041095,30]
[378768856,1755011447239,-400.0,0.00041095,30]
[378768857,1755011447248,-400.0,0.00041095,30]
[378768858,1755011447257,-400.0,0.00041095,30]
[378768859,1755011447267,-400.0,0.00041095,30]
[378768860,1755011447276,-400.0,0.00041095,30]
[378768861,1755011447285,-294.51835886,0.00041095,30]
[378768862,1755011447297,-400.0,0.00041095,30]
[378768863,1755011447306,-400.0,0.00041095,30]
[378768864,1755011447316,-400.0,0.00041095,30]
[378768865,1755011447325,-400.0,0.00041095,30]
[378768866,1755011447335,-400.0,0.00041095,30]
[378768867,1755011447348,-400.0,0.00041095,30]
[378768868,1755011447358,-400.0,0.00041095,30]
[378768869,1755011447367,-400.0,0.00041095,30]
[378768870,1755011447377,-400.0,0.00041095,30]
[378768871,1755011447387,-400.0,0.00041095,30]
[378768872,1755011447396,-400.0,0.00041095,30]
[378768873,1755011447406,-400.0,0.00041095,30]
[378768874,1755011447415,-400.0,0.00041095,30]
[378768875,1755011447425,-400.0,0.00041095,30]
[378768876,1755011447435,-400.0,0.00041095,30]
[378768877,1755011447444,-400.86827614,0.00041095,30]
[378768878,1755011447454,-400.0,0.00041095,30]
[378768879,1755011447464,-400.0,0.00041095,30]
[378768880,1755011447474,-400.0,0.00041095,30]
[378768881,1755011447483,-400.0,0.00041095,30]
[378768882,1755011447493,-500.0,0.00041095,30]
[378768883,1755011447502,-400.0,0.00041095,30]
[378768884,1755011447512,-500.0,0.00041095,30]
[378768885,1755011447522,-500.0,0.00041095,30]
[378768886,1755011447532,-500.0,0.00041095,30]
[378768887,1755011447541,-500.0,0.00041095,30]
[378768888,1755011447551,-500.0,0.00041095,30]
[378768889,1755011447560,-500.0,0.00041095,30]
[378768890,1755011447570,-500.0,0.00041095,30]
[378768891,1755011447580,-500.0,0.00041095,30]
[378768892,1755011447590,-400.0,0.00041095,30]
[378768893,1755011447600,-400.0,0.00041095,30]
[378768894,1755011447610,-400.0,0.00041095,30]
[378768895,1755011447619,-400.0,0.00041095,30]
[378768896,1755011447629,-400.0,0.00041095,30]
[378768897,1755011447638,-400.0,0.00041095,30]
[378768898,1755011447647,-400.0,0.00041095,30]
[378768899,1755011447657,-400.0,0.00041095,30]
[378768900,1755011447666,-400.0,0.00041095,30]
[378768901,1755011447675,-400.0,0.00041095,30]
[378768902,1755011447685,-400.0,0.00041095,30]
[378768903,1755011447695,-400.0,0.00041095,30]
[378768904,1755011447705,-400.0,0.00041095,30]
[378768905,1755011447715,-400.0,0.00041095,30]
[378768906,1755011447726,-400.0,0.00041095,30]
[378768907,1755011447738,-400.0,0.00041095,30]
[378768908,1755011447748,-400.0,0.00041095,30]
[378768909,1755011447757,-400.0,0.00041095,30]
[378768910,1755011447766,-400.0,0.00041095,30]
[378768911,1755011447776,-400.0,0.00041095,30]
[378768912,1755011447785,-400.0,0.00041095,30]
[378768913,1755011447794,-400.0,0.00041095,30]
[378768914,1755011447803,-400.0,0.00041095,30]
[378768915,1755011447813,-400.0,0.00041095,30]
[378768916,1755011447822,-400.0,0.00041095,30]
[378768917,1755011447832,-153.947036,0.00041095,30]
[378768918,1755011447841,-400.0,0.00041095,30]
[378768919,1755011447854,-400.0,0.00041095,30]
[378768920,1755011447863,-400.0,0.00041095,30]
[378768921,1755011447873,-215.605078,0.00041095,30]
[378768922,1755011447882,-400.0,0.00041095,30]
[378768923,1755011447892,-378.883893,0.00041095,30]
[378768924,1755011447901,-400.0,0.00041095,30]
[378768925,1755011447910,-200.59962556,0.00041095,30]
[378768926,1755011447919,-400.0,0.00041095,30]
[378768927,1755011447930,-400.0,0.00041095,30]
[378768928,1755011447939,-400.0,0.00041095,30]
[378768929,1755011447948,-400.0,0.00041095,30]
[378768930,1755011447958,-400.0,0.00041095,30]
[378768931,1755011447967,-400.0,0.00041095,30]
[378768932,1755011447977,-400.0,0.00041095,30]
[378768933,1755011447986,-400.0,0.00041095,30]
[378768934,1755011447995,-400.0,0.00041095,30]
[378768935,1755011448005,-400.0,0.00041095,30]
[378768936,1755011448014,-400.0,0.00041095,30]
[378768937,1755011448024,-400.0,0.00041095,30]
[378768938,1755011448033,-400.0,0.00041095,30]
[378768939,1755011448042,-400.0,0.00041095,30]
[378768940,1755011448051,-400.0,0.00041095,30]
[378768941,1755011448061,-400.0,0.00041095,30]
[378768942,1755011448075,-400.0,0.00041095,30]
[378768943,1755011448084,-400.0,0.00041095,30]
[378768944,1755011448095,-400.0,0.00041095,30]
[378768945,1755011448104,-400.0,0.00041095,30]
[378768946,1755011448114,-378.747162,0.00041095,30]
[378768947,1755011448123,-400.0,0.00041095,30]
[378768948,1755011448133,-400.0,0.00041095,30]
[378768949,1755011448143,-400.0,0.00041095,30]
[378768950,1755011448153,-400.0,0.00041095,30]
[378768951,1755011448162,-400.0,0.00041095,30]
[378768952,1755011448172,-400.0,0.00041095,30]
[378768953,1755011448183,-400.0,0.00041095,30]
[378768954,1755011448192,-400.0,0.00041095,30]
[378768955,1755011448202,-400.0,0.00041095,30]
[378768956,1755011448211,-400.0,0.00041095,30]
[378768957,1755011448221,-400.0,0.00041095,30]
[378768958,1755011448230,-400.0,0.00041095,30]
[378768959,1755011448240,-400.0,0.00041095,30]
[378768960,1755011448260,-400.0,0.00041095,30]
[378768961,1755011448269,-500.0,0.00041095,30]
[378768962,1755011448279,-400.0,0.00041095,30]
[378768963,1755011448288,-400.0,0.00041095,30]
[378768964,1755011448298,-400.0,0.00041095,30]
[378768965,1755011448307,-152.830785,0.00041095,30]
[378768966,1755011448316,-500.0,0.00041095,30]